[Event "Live Chess"]
[Site "Chess.com"]
[Date "2023.05.21"]
[Round "-"]
[White "davigator"]
[Black "jagbama"]
[Result "1-0"]
[WhiteElo "2306"]
[BlackElo "1189"]
[TimeControl "300"]
[EndTime "9:03:55 PDT"]
[Termination "davigator won by checkmate"]

1. e4 {[%clk 0:04:57.8]} 1... e5 {[%clk 0:04:58.9]} 2. Nf3 {[%clk 0:04:55.8]}
2... Nc6 {[%clk 0:04:58.6]} 3. Bb5 {[%clk 0:04:54]} 3... Bc5 {[%clk 0:04:57.5]}
4. c3 {[%clk 0:04:52.6]} 4... d6 {[%clk 0:04:56.4]} 5. d4 {[%clk 0:04:50.9]}
5... Bb6 {[%clk 0:04:53.8]} 6. d5 {[%clk 0:04:49.6]} 6... a6 {[%clk 0:04:47.6]}
7. Ba4 {[%clk 0:04:48.8]} 7... Bg4 {[%clk 0:04:39]} 8. dxc6 {[%clk 0:04:48.7]}
8... Rb8 {[%clk 0:04:33.9]} 9. cxb7+ {[%clk 0:04:47.5]} 9... Kf8 {[%clk
0:04:28]} 10. Be3 {[%clk 0:04:41.8]} 10... Rxb7 {[%clk 0:04:19.9]} 11. b4 {[%clk
0:04:31.8]} 11... a5 {[%clk 0:04:15.9]} 12. a3 {[%clk 0:04:29.9]} 12... Bxe3
{[%clk 0:04:05.7]} 13. fxe3 {[%clk 0:04:28.3]} 13... Nf6 {[%clk 0:04:00.6]} 14.
Nbd2 {[%clk 0:04:26.3]} 14... d5 {[%clk 0:03:56]} 15. Bc6 {[%clk 0:04:17.6]}
15... Rb6 {[%clk 0:03:49.4]} 16. Bxd5 {[%clk 0:04:13.4]} 16... Nxd5 {[%clk
0:03:48.3]} 17. exd5 {[%clk 0:04:12.7]} 17... Qxd5 {[%clk 0:03:47.2]} 18. e4
{[%clk 0:04:11.7]} 18... Qc6 {[%clk 0:03:30.6]} 19. Rc1 {[%clk 0:04:08.4]} 19...
h5 {[%clk 0:03:28.1]} 20. O-O {[%clk 0:04:06.5]} 20... Qg6 {[%clk 0:03:23.5]}
21. Kh1 {[%clk 0:04:04.6]} 21... h4 {[%clk 0:03:19.5]} 22. h3 {[%clk 0:04:02.9]}
22... Bh5 {[%clk 0:03:07.6]} 23. Qe1 {[%clk 0:04:01]} 23... Rf6 {[%clk
0:03:01.8]} 24. Qe3 {[%clk 0:03:59.7]} 24... Bxf3 {[%clk 0:02:50.8]} 25. Nxf3
{[%clk 0:03:58.1]} 25... Qg3 {[%clk 0:02:32.7]} 26. Qc5+ {[%clk 0:03:54.4]}
26... Kg8 {[%clk 0:02:31.2]} 27. Qxc7 {[%clk 0:03:48.4]} 27... g5 {[%clk
0:02:23.9]} 28. Rcd1 {[%clk 0:03:35.2]} 28... g4 {[%clk 0:02:15.2]} 29. Ng1
{[%clk 0:03:27.6]} 29... gxh3 {[%clk 0:02:07.8]} 30. Nxh3 {[%clk 0:03:24.3]}
30... Rxf1+ {[%clk 0:02:01.8]} 31. Rxf1 {[%clk 0:03:22.1]} 31... Rh7 {[%clk
0:01:56.5]} 32. Qxa5 {[%clk 0:03:16.2]} 32... Rg7 {[%clk 0:01:55.3]} 33. Rg1
{[%clk 0:03:14.3]} 33... Qxc3 {[%clk 0:01:45.2]} 34. Qd8+ {[%clk 0:03:10.8]}
34... Kh7 {[%clk 0:01:43.7]} 35. Qxh4+ {[%clk 0:03:09.7]} 35... Kg8 {[%clk
0:01:42.1]} 36. Qf6 {[%clk 0:02:59.7]} 36... Rh7 {[%clk 0:01:37.1]} 37. Qf5
{[%clk 0:02:57.7]} 37... Qxa3 {[%clk 0:01:31.5]} 38. b5 {[%clk 0:02:55.9]} 38...
Qb3 {[%clk 0:01:17]} 39. Qd7 {[%clk 0:02:53.3]} 39... f6 {[%clk 0:01:04]} 40.
Qd5+ {[%clk 0:02:50.3]} 40... Qxd5 {[%clk 0:00:59.2]} 41. exd5 {[%clk
0:02:50.2]} 41... Kf8 {[%clk 0:00:56.8]} 42. Rb1 {[%clk 0:02:48.6]} 42... Rb7
{[%clk 0:00:47.9]} 43. b6 {[%clk 0:02:45.6]} 43... Ke7 {[%clk 0:00:46.4]} 44.
Nf2 {[%clk 0:02:45.1]} 44... Kd6 {[%clk 0:00:45.4]} 45. Ne4+ {[%clk 0:02:43.9]}
45... Kxd5 {[%clk 0:00:44.3]} 46. Nxf6+ {[%clk 0:02:43.6]} 46... Kc6 {[%clk
0:00:43.7]} 47. Kg1 {[%clk 0:02:40.7]} 47... Rxb6 {[%clk 0:00:36]} 48. Rxb6+
{[%clk 0:02:38.8]} 48... Kxb6 {[%clk 0:00:35.3]} 49. Kf2 {[%clk 0:02:38.4]}
49... Kc6 {[%clk 0:00:33.4]} 50. Kf3 {[%clk 0:02:37.9]} 50... Kd6 {[%clk
0:00:30.6]} 51. Ke4 {[%clk 0:02:37]} 51... Ke6 {[%clk 0:00:29.5]} 52. Ng4 {[%clk
0:02:36.6]} 52... Kd6 {[%clk 0:00:25.6]} 53. Nxe5 {[%clk 0:02:36.5]} 53... Ke6
{[%clk 0:00:23.8]} 54. g4 {[%clk 0:02:36]} 54... Kf6 {[%clk 0:00:22.5]} 55. Kf4
{[%clk 0:02:35.9]} 55... Kg7 {[%clk 0:00:21.3]} 56. Kf5 {[%clk 0:02:34.7]} 56...
Kg8 {[%clk 0:00:19.1]} 57. Kg6 {[%clk 0:02:33.2]} 57... Kf8 {[%clk 0:00:17.1]}
58. Kh7 {[%clk 0:02:32.1]} 58... Ke7 {[%clk 0:00:15.4]} 59. g5 {[%clk
0:02:31.9]} 59... Ke6 {[%clk 0:00:14]} 60. g6 {[%clk 0:02:31.8]} 60... Kxe5
{[%clk 0:00:11.4]} 61. g7 {[%clk 0:02:31.7]} 61... Kf4 {[%clk 0:00:10.6]} 62.
g8=Q {[%clk 0:02:31.5]} 62... Kf3 {[%clk 0:00:09.8]} 63. Qg5 {[%clk 0:02:30.3]}
63... Ke2 {[%clk 0:00:08.7]} 64. Qg3 {[%clk 0:02:28.8]} 64... Kd2 {[%clk
0:00:07.5]} 65. Kg6 {[%clk 0:02:28.2]} 65... Kc2 {[%clk 0:00:06.9]} 66. Kf5
{[%clk 0:02:27.7]} 66... Kd2 {[%clk 0:00:06.1]} 67. Ke4 {[%clk 0:02:27.1]} 67...
Ke2 {[%clk 0:00:05.4]} 68. Qg2+ {[%clk 0:02:25.9]} 68... Kd1 {[%clk 0:00:04.5]}
69. Kd3 {[%clk 0:02:25.7]} 69... Kc1 {[%clk 0:00:03.8]} 70. Qc2# {[%clk
0:02:24.9]} 1-0

[Event "Live Chess"]
[Site "Chess.com"]
[Date "2023.05.21"]
[Round "-"]
[White "Duke_of_Bebington"]
[Black "Grookey2012"]
[Result "1-0"]
[WhiteElo "1540"]
[BlackElo "568"]
[TimeControl "300"]
[EndTime "9:03:55 PDT"]
[Termination "Duke_of_Bebington won by resignation"]

1. e4 {[%clk 0:04:57]} 1... d5 {[%clk 0:04:59.2]} 2. exd5 {[%clk 0:04:56]} 2...
Qxd5 {[%clk 0:04:57.6]} 3. d4 {[%clk 0:04:55.2]} 3... Qe6+ {[%clk 0:04:57.5]} 4.
Be3 {[%clk 0:04:52.8]} 4... Nc6 {[%clk 0:04:57.4]} 5. Nf3 {[%clk 0:04:51]} 5...
Bd7 {[%clk 0:04:55.4]} 6. Bb5 {[%clk 0:04:50]} 6... O-O-O {[%clk 0:04:55.3]} 7.
O-O {[%clk 0:04:49.1]} 7... Nf6 {[%clk 0:04:54.4]} 8. c4 {[%clk 0:04:48]} 8...
Ne4 {[%clk 0:04:53.7]} 9. d5 {[%clk 0:04:46.8]} 9... Qg6 {[%clk 0:04:49.4]} 10.
dxc6 {[%clk 0:04:44.3]} 10... Bxc6 {[%clk 0:04:47.5]} 11. Qc2 {[%clk 0:04:42.9]}
1-0

[Event "Live Chess"]
[Site "Chess.com"]
[Date "2023.05.21"]
[Round "-"]
[White "McSlash1"]
[Black "yarek"]
[Result "1-0"]
[WhiteElo "1978"]
[BlackElo "1851"]
[TimeControl "300"]
[EndTime "9:03:59 PDT"]
[Termination "McSlash1 won on time"]

1. e4 {[%clk 0:04:59.5]} 1... g6 {[%clk 0:04:58.3]} 2. d4 {[%clk 0:04:58.5]}
2... Bg7 {[%clk 0:04:57.2]} 3. f4 {[%clk 0:04:58.1]} 3... c6 {[%clk 0:04:55.7]}
4. Nf3 {[%clk 0:04:57.6]} 4... d5 {[%clk 0:04:54.6]} 5. e5 {[%clk 0:04:57.1]}
5... Bg4 {[%clk 0:04:53]} 6. h3 {[%clk 0:04:55.1]} 6... Bxf3 {[%clk 0:04:51.8]}
7. Qxf3 {[%clk 0:04:55]} 7... e6 {[%clk 0:04:50.3]} 8. Bd3 {[%clk 0:04:54.6]}
8... Nd7 {[%clk 0:04:48.3]} 9. O-O {[%clk 0:04:54.2]} 9... c5 {[%clk 0:04:47.1]}
10. c3 {[%clk 0:04:53.2]} 10... Ne7 {[%clk 0:04:43.3]} 11. g4 {[%clk 0:04:49.4]}
11... cxd4 {[%clk 0:04:33.5]} 12. cxd4 {[%clk 0:04:48.3]} 12... Qb6 {[%clk
0:04:31.8]} 13. Qf2 {[%clk 0:04:39.5]} 13... h5 {[%clk 0:04:26.4]} 14. g5 {[%clk
0:04:37.9]} 14... Nf5 {[%clk 0:04:22.3]} 15. Bxf5 {[%clk 0:04:36.5]} 15... gxf5
{[%clk 0:04:20.3]} 16. Nc3 {[%clk 0:04:36.4]} 16... h4 {[%clk 0:04:02.6]} 17.
Be3 {[%clk 0:04:32.8]} 17... Bf8 {[%clk 0:04:01]} 18. a4 {[%clk 0:04:31.7]}
18... a5 {[%clk 0:03:55.6]} 19. Nb5 {[%clk 0:04:30.8]} 19... Rc8 {[%clk
0:03:36.5]} 20. Rac1 {[%clk 0:04:29.7]} 20... Rc4 {[%clk 0:03:12.4]} 21. Rxc4
{[%clk 0:04:23.6]} 21... dxc4 {[%clk 0:03:10.6]} 22. d5 {[%clk 0:04:23]} 22...
Qd8 {[%clk 0:02:52.3]} 23. d6 {[%clk 0:04:21]} 23... Bg7 {[%clk 0:02:34.9]} 24.
Rc1 {[%clk 0:04:14.1]} 24... Nxe5 {[%clk 0:02:11.7]} 25. fxe5 {[%clk 0:03:33.8]}
25... Bxe5 {[%clk 0:02:10.8]} 26. Bd4 {[%clk 0:03:26.3]} 26... Bg3 {[%clk
0:02:00.6]} 27. Qe2 {[%clk 0:03:17.5]} 27... O-O {[%clk 0:01:42.8]} 28. Qh5
{[%clk 0:03:14.4]} 28... e5 {[%clk 0:01:37.3]} 29. g6 {[%clk 0:02:57]} 29...
fxg6 {[%clk 0:01:25.3]} 30. Qxg6+ {[%clk 0:02:56.9]} 30... Kh8 {[%clk 0:01:23]}
31. Rxc4 {[%clk 0:02:50.8]} 31... exd4 {[%clk 0:01:10.2]} 32. Rc7 {[%clk
0:02:48.9]} 1-0

[Event "Live Chess"]
[Site "Chess.com"]
[Date "2023.05.21"]
[Round "-"]
[White "bedsdrout"]
[Black "Mikhail_Golubev"]
[Result "1-0"]
[WhiteElo "1875"]
[BlackElo "2406"]
[TimeControl "300"]
[EndTime "9:04:11 PDT"]
[Termination "bedsdrout won on time"]

1. e4 {[%clk 0:04:55.2]} 1... Na6 {[%clk 0:04:55.8]} 2. Nc3 {[%clk 0:04:53.3]}
2... c6 {[%clk 0:04:54.8]} 3. d4 {[%clk 0:04:49]} 3... Nc7 {[%clk 0:04:53.6]} 4.
Bd3 {[%clk 0:04:47.3]} 4... d5 {[%clk 0:04:52.3]} 5. e5 {[%clk 0:04:45.1]} 5...
g6 {[%clk 0:04:47.6]} 6. Bd2 {[%clk 0:04:39.3]} 6... h5 {[%clk 0:04:46.1]} 7.
Nce2 {[%clk 0:04:34.8]} 7... Nh6 {[%clk 0:04:43.2]} 8. Nf4 {[%clk 0:04:31.7]}
8... Bf5 {[%clk 0:04:37.3]} 9. Nf3 {[%clk 0:04:28.7]} 9... Bxd3 {[%clk
0:04:35.4]} 10. Nxd3 {[%clk 0:04:25.6]} 10... Ne6 {[%clk 0:04:28.4]} 11. c3
{[%clk 0:04:23.5]} 11... Nf5 {[%clk 0:04:24.2]} 12. O-O {[%clk 0:04:21.1]} 12...
Qd7 {[%clk 0:04:19.3]} 13. Ng5 {[%clk 0:04:18.5]} 13... Nxg5 {[%clk 0:04:17.3]}
14. Bxg5 {[%clk 0:04:16.6]} 14... Bg7 {[%clk 0:04:04.3]} 15. Nf4 {[%clk
0:04:09.2]} 15... e6 {[%clk 0:03:42.6]} 16. Re1 {[%clk 0:04:03.8]} 16... Bh6
{[%clk 0:03:40.1]} 17. Bxh6 {[%clk 0:04:01.4]} 17... Rxh6 {[%clk 0:03:40]} 18.
Qa4 {[%clk 0:03:57.7]} 18... Kf8 {[%clk 0:03:33.2]} 19. Qc2 {[%clk 0:03:53.6]}
19... g5 {[%clk 0:03:25.5]} 20. Nd3 {[%clk 0:03:45.9]} 20... Kg7 {[%clk
0:03:20.9]} 21. a4 {[%clk 0:03:34.4]} 21... Kh7 {[%clk 0:03:19.1]} 22. a5 {[%clk
0:03:30.9]} 22... g4 {[%clk 0:03:05.4]} 23. Qb3 {[%clk 0:03:26.5]} 23... Qe7
{[%clk 0:03:01.5]} 24. Ra4 {[%clk 0:03:22.9]} 24... h4 {[%clk 0:02:51.8]} 25.
Rb4 {[%clk 0:03:20.5]} 25... Rb8 {[%clk 0:02:46.9]} 26. Rf1 {[%clk 0:03:17.2]}
26... g3 {[%clk 0:02:40.5]} 27. h3 {[%clk 0:03:15]} 27... gxf2+ {[%clk
0:02:34.1]} 28. Nxf2 {[%clk 0:03:12]} 28... Ne3 {[%clk 0:02:14.8]} 29. Ng4
{[%clk 0:03:08.6]} 29... Nxg4 {[%clk 0:02:07.3]} 30. Qc2+ {[%clk 0:03:06.5]}
30... Kg7 {[%clk 0:02:03.5]} 31. Qe2 {[%clk 0:03:02.8]} 31... Rg6 {[%clk
0:01:29.8]} 32. hxg4 {[%clk 0:02:58.9]} 32... b5 {[%clk 0:01:12.1]} 33. Rf4
{[%clk 0:02:55.7]} 33... Qg5 {[%clk 0:00:55.3]} 34. Qf2 {[%clk 0:02:44.2]} 34...
f6 {[%clk 0:00:51.9]} 35. exf6+ {[%clk 0:02:41.5]} 35... Rxf6 {[%clk 0:00:51.8]}
36. Rxf6 {[%clk 0:02:39.1]} 36... Qxf6 {[%clk 0:00:51.2]} 37. Qe1 {[%clk
0:02:36.9]} 37... Rf8 {[%clk 0:00:34.1]} 38. Rb3 {[%clk 0:02:28]} 38... h3
{[%clk 0:00:26.9]} 39. gxh3 {[%clk 0:02:25.4]} 39... Qf3 {[%clk 0:00:25.8]} 40.
Ra3 {[%clk 0:02:23]} 40... Qxh3 {[%clk 0:00:21.9]} 41. c4 {[%clk 0:02:16]} 1-0

[Event "Live Chess"]
[Site "Chess.com"]
[Date "2023.05.21"]
[Round "-"]
[White "MartinWalker4"]
[Black "gmnorfolk"]
[Result "1/2-1/2"]
[WhiteElo "2097"]
[BlackElo "2130"]
[TimeControl "300"]
[EndTime "9:04:17 PDT"]
[Termination "Game drawn by agreement"]

1. e4 {[%clk 0:04:57.2]} 1... e5 {[%clk 0:04:57.9]} 2. Nf3 {[%clk 0:04:55.2]}
2... Nf6 {[%clk 0:04:57.3]} 3. Nxe5 {[%clk 0:04:53.2]} 3... d6 {[%clk
0:04:56.4]} 4. Nf3 {[%clk 0:04:52.1]} 4... Nxe4 {[%clk 0:04:55.7]} 5. Nc3 {[%clk
0:04:51.1]} 5... Nf6 {[%clk 0:04:55]} 6. d4 {[%clk 0:04:47.9]} 6... Be7 {[%clk
0:04:54.3]} 7. Bd3 {[%clk 0:04:46.6]} 7... O-O {[%clk 0:04:53.2]} 8. O-O {[%clk
0:04:45.3]} 8... Bg4 {[%clk 0:04:51.6]} 9. Ne4 {[%clk 0:04:36.5]} 9... c6 {[%clk
0:04:45]} 10. c3 {[%clk 0:04:34.5]} 10... Nxe4 {[%clk 0:04:42.6]} 11. Bxe4
{[%clk 0:04:33]} 11... d5 {[%clk 0:04:42]} 12. Bd3 {[%clk 0:04:32.1]} 12... Bf6
{[%clk 0:04:39.2]} 13. Be2 {[%clk 0:04:30.2]} 13... Nd7 {[%clk 0:04:37.2]} 14.
Ne5 {[%clk 0:04:20.7]} 14... Bxe2 {[%clk 0:04:35.8]} 15. Qxe2 {[%clk 0:04:19]}
15... Re8 {[%clk 0:04:34.4]} 16. f4 {[%clk 0:04:17.8]} 16... g6 {[%clk
0:04:32.4]} 17. Bd2 {[%clk 0:04:02.1]} 17... Bg7 {[%clk 0:04:30.8]} 18. Qf3
{[%clk 0:04:01]} 18... f6 {[%clk 0:04:29.1]} 19. Nxd7 {[%clk 0:03:55.2]} 19...
Qxd7 {[%clk 0:04:28.2]} 20. f5 {[%clk 0:03:53.9]} 20... Qxf5 {[%clk 0:04:26.2]}
21. Qxf5 {[%clk 0:03:52.3]} 21... gxf5 {[%clk 0:04:26.1]} 22. Rxf5 {[%clk
0:03:50.6]} 22... Re2 {[%clk 0:04:25.8]} 23. Rf2 {[%clk 0:03:48.4]} 23... Rae8
{[%clk 0:04:23.6]} 24. Raf1 {[%clk 0:03:45.9]} 24... Rxf2 {[%clk 0:04:20]}
1/2-1/2

[Event "Live Chess"]
[Site "Chess.com"]
[Date "2023.05.21"]
[Round "-"]
[White "NotHarryV"]
[Black "Ian-Morley"]
[Result "1-0"]
[WhiteElo "1519"]
[BlackElo "1119"]
[TimeControl "300"]
[EndTime "9:04:20 PDT"]
[Termination "NotHarryV won by resignation"]

1. d4 {[%clk 0:04:59.1]} 1... e5 {[%clk 0:04:58.9]} 2. dxe5 {[%clk 0:04:57.7]}
2... Nc6 {[%clk 0:04:58.3]} 3. Nf3 {[%clk 0:04:56.7]} 3... Qe7 {[%clk
0:04:57.7]} 4. Bf4 {[%clk 0:04:55.2]} 4... Qb4+ {[%clk 0:04:56.7]} 5. Bd2 {[%clk
0:04:54.9]} 5... Qxb2 {[%clk 0:04:55.8]} 6. Nc3 {[%clk 0:04:54.5]} 6... Nb4
{[%clk 0:04:52.1]} 7. Nd4 {[%clk 0:04:48.8]} 7... c5 {[%clk 0:04:49.1]} 8. Rb1
{[%clk 0:04:45.2]} 8... Nxc2+ {[%clk 0:04:34.9]} 9. Nxc2 {[%clk 0:04:39]} 9...
Qb6 {[%clk 0:04:26.9]} 10. Rxb6 {[%clk 0:04:37.3]} 10... axb6 {[%clk 0:04:20.7]}
11. Qb1 {[%clk 0:04:23.7]} 11... Ne7 {[%clk 0:04:16.9]} 12. Nb5 {[%clk
0:04:20.9]} 12... Nc6 {[%clk 0:04:15.5]} 13. Nc7+ {[%clk 0:04:19.4]} 1-0

[Event "Live Chess"]
[Site "Chess.com"]
[Date "2023.05.21"]
[Round "-"]
[White "mirandaasilva"]
[Black "GMHarry-youtube"]
[Result "0-1"]
[WhiteElo "1655"]
[BlackElo "1987"]
[TimeControl "300"]
[EndTime "9:04:23 PDT"]
[Termination "GMHarry-youtube won by resignation"]

1. Nf3 {[%clk 0:04:57.9]} 1... e5 {[%clk 0:04:58.9]} 2. d4 {[%clk 0:04:57.8]}
2... e4 {[%clk 0:04:58.7]} 3. Nfd2 {[%clk 0:04:55.5]} 3... e3 {[%clk 0:04:58]}
4. fxe3 {[%clk 0:04:52.7]} 4... Bd6 {[%clk 0:04:57.5]} 5. g3 {[%clk 0:04:52.4]}
5... h5 {[%clk 0:04:55.1]} 6. Bh3 {[%clk 0:04:52]} 6... h4 {[%clk 0:04:54.1]} 7.
g4 {[%clk 0:04:51.1]} 7... Qe7 {[%clk 0:04:47.1]} 8. Nf3 {[%clk 0:04:49.3]} 8...
c6 {[%clk 0:04:38.3]} 9. c4 {[%clk 0:04:48.8]} 9... Bc7 {[%clk 0:04:36.8]} 10.
b3 {[%clk 0:04:47.6]} 10... d5 {[%clk 0:04:34.4]} 11. Ba3 {[%clk 0:04:46.2]}
11... Bd6 {[%clk 0:04:31.6]} 12. Bxd6 {[%clk 0:04:44.4]} 12... Qxd6 {[%clk
0:04:31.5]} 13. Nc3 {[%clk 0:04:43.4]} 13... Nf6 {[%clk 0:04:29.1]} 14. Qd3
{[%clk 0:04:42]} 14... Nxg4 {[%clk 0:04:18.7]} 15. Rg1 {[%clk 0:04:34.7]} 15...
Nxh2 {[%clk 0:04:12.6]} 16. Bxc8 {[%clk 0:04:33.1]} 16... Nxf3+ {[%clk
0:04:09.1]} 17. exf3 {[%clk 0:04:33]} 17... Qh2 {[%clk 0:04:02.1]} 18. Qf1
{[%clk 0:04:30.3]} 18... Qb2 {[%clk 0:03:55.4]} 19. Bxb7 {[%clk 0:04:24]} 19...
Qxa1+ {[%clk 0:03:45.2]} 20. Kd2 {[%clk 0:04:23.4]} 20... Qb2+ {[%clk
0:03:43.7]} 21. Kd3 {[%clk 0:04:21.8]} 21... Na6 {[%clk 0:03:40.6]} 22. a3
{[%clk 0:04:06.7]} 22... Rb8 {[%clk 0:03:23.1]} 23. Bxa6 {[%clk 0:04:05.5]}
23... Rxb3 {[%clk 0:03:21.3]} 24. Qc1 {[%clk 0:03:59.1]} 24... Qf2 {[%clk
0:03:05.9]} 25. Rf1 {[%clk 0:03:52.4]} 25... Qg3 {[%clk 0:03:01]} 26. Kc2 {[%clk
0:03:15.6]} 26... Rb6 {[%clk 0:02:47.4]} 27. Bc8 {[%clk 0:03:13.6]} 27... Qg2+
{[%clk 0:02:43]} 28. Kd3 {[%clk 0:03:10]} 28... O-O {[%clk 0:02:28.7]} 29. Bg4
{[%clk 0:03:04.3]} 29... f5 {[%clk 0:02:19.1]} 30. Rg1 {[%clk 0:02:41.8]} 30...
Qf2 {[%clk 0:02:13.4]} 31. Bh5 {[%clk 0:02:29.2]} 31... f4 {[%clk 0:02:05.3]}
32. cxd5 {[%clk 0:02:12.1]} 32... cxd5 {[%clk 0:02:00.6]} 33. Nxd5 {[%clk
0:02:10.5]} 33... Rb3+ {[%clk 0:01:58]} 34. Nc3 {[%clk 0:01:42.6]} 34... fxe3
{[%clk 0:01:50.9]} 35. Qxe3 {[%clk 0:01:37.5]} 35... Rxc3+ {[%clk 0:01:49]} 36.
Ke4 {[%clk 0:01:33.4]} 36... Qxe3+ {[%clk 0:01:46.7]} 0-1

[Event "Live Chess"]
[Site "Chess.com"]
[Date "2023.05.21"]
[Round "-"]
[White "zdanevych"]
[Black "AyannaTang"]
[Result "1-0"]
[WhiteElo "1451"]
[BlackElo "230"]
[TimeControl "300"]
[EndTime "9:04:24 PDT"]
[Termination "zdanevych won by checkmate"]

1. d4 {[%clk 0:04:59.4]} 1... e5 {[%clk 0:04:58.7]} 2. dxe5 {[%clk 0:04:58.4]}
2... d5 {[%clk 0:04:57.1]} 3. exd6 {[%clk 0:04:57.1]} 3... Qf6 {[%clk
0:04:55.7]} 4. dxc7 {[%clk 0:04:51.1]} 4... Nc6 {[%clk 0:04:54.3]} 5. Nf3 {[%clk
0:04:47.4]} 5... Bc5 {[%clk 0:04:50.5]} 6. Bg5 {[%clk 0:04:45.9]} 6... Qf5
{[%clk 0:04:48.5]} 7. e3 {[%clk 0:04:39.1]} 7... Be6 {[%clk 0:04:42.2]} 8. Bb5
{[%clk 0:04:28.4]} 8... a6 {[%clk 0:04:38.7]} 9. Bxc6+ {[%clk 0:04:27.7]} 9...
bxc6 {[%clk 0:04:37.7]} 10. Qd8+ {[%clk 0:04:26.3]} 10... Rxd8 {[%clk
0:04:34.7]} 11. cxd8=Q# {[%clk 0:04:26.2]} 1-0

[Event "Live Chess"]
[Site "Chess.com"]
[Date "2023.05.21"]
[Round "-"]
[White "lord_cll"]
[Black "Ra2orLeaf"]
[Result "1/2-1/2"]
[WhiteElo "1218"]
[BlackElo "1160"]
[TimeControl "300"]
[EndTime "9:04:33 PDT"]
[Termination "Game drawn by stalemate"]

1. e4 {[%clk 0:04:56.4]} 1... c5 {[%clk 0:04:59.2]} 2. c3 {[%clk 0:04:54.9]}
2... Nc6 {[%clk 0:04:58.6]} 3. Nf3 {[%clk 0:04:50.1]} 3... e6 {[%clk 0:04:57.5]}
4. d4 {[%clk 0:04:47.2]} 4... cxd4 {[%clk 0:04:57.4]} 5. cxd4 {[%clk 0:04:46.3]}
5... d6 {[%clk 0:04:55.8]} 6. Nc3 {[%clk 0:04:44.3]} 6... Be7 {[%clk 0:04:55.2]}
7. Bb5 {[%clk 0:04:42.8]} 7... a6 {[%clk 0:04:52.2]} 8. Ba4 {[%clk 0:04:33.9]}
8... Nf6 {[%clk 0:04:46.8]} 9. Be3 {[%clk 0:04:28.4]} 9... O-O {[%clk
0:04:41.3]} 10. h3 {[%clk 0:04:27.1]} 10... b5 {[%clk 0:04:40.2]} 11. Bb3 {[%clk
0:04:25.5]} 11... d5 {[%clk 0:04:34]} 12. e5 {[%clk 0:04:19.8]} 12... Nd7 {[%clk
0:04:31.2]} 13. O-O {[%clk 0:04:14.4]} 13... Nb6 {[%clk 0:04:30.6]} 14. a4
{[%clk 0:04:04.2]} 14... b4 {[%clk 0:04:24.2]} 15. Ne2 {[%clk 0:03:58.2]} 15...
Na5 {[%clk 0:04:15.9]} 16. Bc2 {[%clk 0:03:51.7]} 16... Nac4 {[%clk 0:04:11.3]}
17. b3 {[%clk 0:03:41.1]} 17... Nxe3 {[%clk 0:04:04.8]} 18. fxe3 {[%clk
0:03:37.9]} 18... a5 {[%clk 0:04:04.7]} 19. Ng3 {[%clk 0:03:26.2]} 19... Ba6
{[%clk 0:04:02.2]} 20. Bd3 {[%clk 0:03:18.4]} 20... h6 {[%clk 0:03:56.4]} 21.
Bxa6 {[%clk 0:03:14.8]} 21... Rxa6 {[%clk 0:03:56.3]} 22. e4 {[%clk 0:03:12.5]}
22... Bh4 {[%clk 0:03:48.4]} 23. Nxh4 {[%clk 0:03:02.2]} 23... Qxh4 {[%clk
0:03:45.9]} 24. Qf3 {[%clk 0:02:56.4]} 24... dxe4 {[%clk 0:03:36]} 25. Nxe4
{[%clk 0:02:56.3]} 25... Nd5 {[%clk 0:03:34.7]} 26. Nc5 {[%clk 0:02:49]} 26...
Qxd4+ {[%clk 0:03:18]} 27. Qf2 {[%clk 0:02:44.5]} 27... Qxf2+ {[%clk 0:03:15.5]}
28. Rxf2 {[%clk 0:02:42.7]} 28... Ra7 {[%clk 0:03:14]} 29. Rd1 {[%clk
0:02:32.2]} 29... Rc8 {[%clk 0:03:11.9]} 30. Ne4 {[%clk 0:02:25.8]} 30... Rac7
{[%clk 0:03:03.1]} 31. Nd6 {[%clk 0:02:23.6]} 31... Rc1 {[%clk 0:02:56.4]} 32.
Rdf1 {[%clk 0:02:15.9]} 32... R8c7 {[%clk 0:02:35.6]} 33. Kh2 {[%clk 0:02:09]}
33... Rxf1 {[%clk 0:02:22]} 34. Rxf1 {[%clk 0:02:06.7]} 34... Rc3 {[%clk
0:02:21.6]} 35. Nxf7 {[%clk 0:01:50]} 35... Rxb3 {[%clk 0:02:15.8]} 36. Nd8
{[%clk 0:01:48.1]} 36... Nc7 {[%clk 0:02:03.6]} 37. Nc6 {[%clk 0:01:44.9]} 37...
Ra3 {[%clk 0:01:56.2]} 38. Nxa5 {[%clk 0:01:32.3]} 38... Rxa4 {[%clk 0:01:55.3]}
39. Nc6 {[%clk 0:01:25.1]} 39... Ra6 {[%clk 0:01:46.5]} 40. Ne7+ {[%clk
0:01:22.4]} 40... Kh7 {[%clk 0:01:42.4]} 41. Rc1 {[%clk 0:01:17.4]} 41... b3
{[%clk 0:01:36.8]} 42. Rxc7 {[%clk 0:01:08.9]} 42... b2 {[%clk 0:01:35.6]} 43.
Rb7 {[%clk 0:01:07.2]} 43... Ra2 {[%clk 0:01:27.7]} 44. Nc6 {[%clk 0:01:04]}
44... Kg6 {[%clk 0:01:21.7]} 45. Nd4 {[%clk 0:00:55.5]} 45... Kg5 {[%clk
0:01:15.9]} 46. Ne2 {[%clk 0:00:40.7]} 46... Kf5 {[%clk 0:01:10.9]} 47. Nc3
{[%clk 0:00:35.3]} 47... Ra5 {[%clk 0:00:55.7]} 48. Rxb2 {[%clk 0:00:33.6]}
48... Rxe5 {[%clk 0:00:51.7]} 49. Rf2+ {[%clk 0:00:26.3]} 49... Kg6 {[%clk
0:00:49.6]} 50. Ne2 {[%clk 0:00:24]} 50... h5 {[%clk 0:00:46.5]} 51. Nf4+ {[%clk
0:00:21.7]} 51... Kg5 {[%clk 0:00:41.8]} 52. Nd3 {[%clk 0:00:17.5]} 52... g6
{[%clk 0:00:41]} 53. Nxe5 {[%clk 0:00:15.6]} 53... Kh4 {[%clk 0:00:40.1]} 54.
Nxg6+ {[%clk 0:00:13.5]} 54... Kg5 {[%clk 0:00:38.9]} 55. Nf8 {[%clk 0:00:11.9]}
55... Kh4 {[%clk 0:00:38.8]} 56. Nxe6 {[%clk 0:00:11]} 1/2-1/2